fUSD/lending_fUSD_20241208
["ID","MTS","AMOUNT","RATE_DAILY","PERIOD"]
[344620707,1733622641841,-500.0,0.00019999,2]
[344620708,1733622641852,-284.7549271,0.00019999,2]
[344620709,1733622641862,-624.62508947,0.00019999,2]
[344620710,1733622641871,-500.0,0.00019999,2]
[344620711,1733622641880,-500.0,0.00019999,2]
[344620712,1733622641889,-500.0,0.00019999,2]
[344620713,1733622641899,-500.0,0.00019999,2]
[344620714,1733622641909,-500.0,0.00019999,2]
[344620715,1733622641918,-500.0,0.00019999,2]
[344620716,1733622641929,-500.0,0.00019999,2]
[344620717,1733622641939,-500.0,0.00019999,2]
[344620718,1733622641948,-500.0,0.00019999,2]
[344620719,1733622641957,-500.0,0.00019999,2]
[344620720,1733622641966,-500.0,0.00019999,2]
[344620721,1733622641975,-500.0,0.00019999,2]
[344620722,1733622641984,-500.0,0.00019999,2]
[344620723,1733622641993,-500.0,0.00019999,2]
[344620724,1733622642002,-500.0,0.00019999,2]
[344620725,1733622642012,-318.89656199,0.00019999,2]
[344620726,1733622642022,-500.0,0.00019999,2]
[344620727,1733622642031,-500.0,0.00019999,2]
[344620728,1733622642040,-500.0,0.00019999,2]
[344620729,1733622642049,-500.0,0.00019999,2]
[344620730,1733622642058,-500.0,0.00019999,2]
[344620731,1733622642067,-500.0,0.00019999,2]
[344620732,1733622642076,-287.29672786,0.00019999,2]
[344620733,1733622642085,-500.0,0.00019999,2]
[344620734,1733622642095,-500.0,0.00019999,2]
[344620735,1733622642104,-500.0,0.00019999,2]
[344620736,1733622642114,-500.0,0.00019999,2]
[344620737,1733622642123,-500.0,0.00019999,2]
[344620738,1733622642133,-500.0,0.00019999,2]
[344620739,1733622642142,-500.0,0.00019999,2]
[344620740,1733622642152,-500.0,0.00019999,2]
[344620741,1733622642162,-543.48982983,0.00019999,2]
[344620742,1733622642172,-500.0,0.00019999,2]
[344620743,1733622642184,-500.0,0.00019999,2]
[344620744,1733622642194,-500.0,0.00019999,2]
[344620745,1733622642204,-500.0,0.00019999,2]
[344620746,1733622642214,-500.0,0.00019999,2]
[344620747,1733622642224,-500.0,0.00019999,2]
[344620748,1733622642233,-500.0,0.00019999,2]
[344620749,1733622642242,-525.31721539,0.00019999,2]
[344620750,1733622642252,-500.0,0.00019999,2]
[344620751,1733622642261,-500.0,0.00019999,2]
[344620752,1733622642271,-500.0,0.00019999,2]
[344620753,1733622642280,-194.60100406,0.00019999,2]
[344620754,1733622642289,-500.0,0.00019999,2]
[344620755,1733622642298,-500.0,0.00019999,2]
[344620756,1733622642307,-500.0,0.00019999,2]
[344620757,1733622642316,-500.0,0.00019999,2]
[344620758,1733622642325,-500.0,0.00019999,2]
[344620759,1733622642334,-500.0,0.00019999,2]
[344620760,1733622642343,-500.0,0.00019999,2]
[344620761,1733622642352,-500.0,0.00019999,2]
[344620762,1733622642362,-303.95076919,0.00019999,2]
[344620763,1733622642371,-500.0,0.00019999,2]
[344620764,1733622642380,-500.0,0.00019999,2]
[344620765,1733622642389,-500.0,0.00019999,2]
[344620766,1733622642398,-500.0,0.00019999,2]
[344620767,1733622642408,-500.0,0.00019999,2]
[344620768,1733622642417,-500.0,0.00019999,2]
[344620769,1733622642428,-500.0,0.00019999,2]
[344620770,1733622642437,-525.81075172,0.00019999,2]
[344620771,1733622642447,-500.0,0.00019999,2]
[344620772,1733622642458,-246.79167476,0.00019999,2]
[344620773,1733622642468,-500.0,0.00019999,2]
[344620774,1733622642477,-500.0,0.00019999,2]
[344620776,1733622642487,-192.4197996,0.00019999,2]
[344620777,1733622642496,-500.0,0.00019999,2]
[344620778,1733622642506,-500.0,0.00019999,2]
[344620779,1733622642515,-500.0,0.00019999,2]
[344620780,1733622642524,-500.0,0.00019999,2]
[344620781,1733622642534,-500.0,0.00019999,2]
[344620782,1733622642544,-500.0,0.00019999,2]
[344620783,1733622642553,-500.0,0.00019999,2]
[344620784,1733622642563,-500.0,0.00019999,2]
[344620785,1733622642572,-500.0,0.00019999,2]
[344620786,1733622642582,-500.0,0.00019999,2]
[344620787,1733622642590,-500.0,0.00019999,2]
[344620788,1733622642599,-500.0,0.00019999,2]
[344620789,1733622642608,-500.0,0.00019999,2]
[344620790,1733622642618,-500.0,0.00019999,2]
[344620791,1733622642627,-500.0,0.00019999,2]
[344620792,1733622642636,-500.0,0.00019999,2]
[344620793,1733622642645,-500.0,0.00019999,2]
[344620794,1733622642654,-500.0,0.00019999,2]
[344620795,1733622642663,-459.62462627,0.00019999,2]
[344620797,1733622642672,-500.0,0.00019999,2]
[344620798,1733622642687,-500.0,0.00019999,2]
[344620799,1733622642696,-500.0,0.00019999,2]
[344620800,1733622642705,-500.0,0.00019999,2]
[344620801,1733622642715,-500.0,0.00019999,2]
[344620802,1733622642724,-500.0,0.00019999,2]
[344620803,1733622642733,-500.0,0.00019999,2]
[344620804,1733622642742,-518.73305785,0.00019999,2]
[344620805,1733622642756,-500.0,0.00019999,2]
[344620806,1733622642765,-500.0,0.00019999,2]
[344620807,1733622642774,-500.0,0.00019999,2]
[344620808,1733622642783,-500.0,0.00019999,2]
[344620809,1733622642794,-500.0,0.00019999,2]
[344620810,1733622642803,-500.0,0.00019999,2]
[344620811,1733622642813,-500.0,0.00019999,2]
[344620812,1733622642822,-500.0,0.00019999,2]
[344620813,1733622642834,-500.0,0.00019999,2]
[344620814,1733622642843,-500.0,0.00019999,2]
[344620815,1733622642853,-515.89138007,0.00019999,2]
[344620816,1733622642862,-504.99950491,0.00019999,2]
[344620817,1733622642871,-520.34969294,0.00019999,2]
[344620818,1733622642881,-4070.29,0.00019999,2]
[344620819,1733622642890,-4070.29,0.00019999,2]
[344620820,1733622642899,-545.98394318,0.00019999,2]
[344620821,1733622642908,-4070.29,0.00019999,2]
[344620822,1733622642917,-4070.29,0.00019999,2]
[344620823,1733622642927,-4070.29,0.00019999,2]
[344620824,1733622642936,-4070.29,0.00019999,2]
[344620825,1733622642946,-4070.29,0.00019999,2]
[344620826,1733622642955,-4070.29,0.00019999,2]
[344620827,1733622642963,-4070.29,0.00019999,2]
[344620828,1733622642973,-4070.29,0.00019999,2]
[344620829,1733622642982,-4070.29,0.00019999,2]
[344620830,1733622642991,-4070.29,0.00019999,2]
[344620831,1733622643001,-4070.29,0.00019999,2]
[344620832,1733622643010,-4070.29,0.00019999,2]
[344620833,1733622643019,-4070.29,0.00019999,2]
[344620834,1733622643029,-4070.29,0.00019999,2]
[344620835,1733622643038,-4070.29,0.00019999,2]
[344620836,1733622643047,-4070.29,0.00019999,2]
[344620837,1733622643056,-4070.29,0.00019999,2]
[344620838,1733622643066,-4070.29,0.00019999,2]
[344620839,1733622643074,-4070.29,0.00019999,2]
[344620840,1733622643084,-4070.43254997,0.00019999,2]
[344620841,1733622643093,-500.0,0.00019999,2]
[344620842,1733622643102,-257.92163582,0.00019999,2]
[344620843,1733622643111,-497.39268768,0.00019999,2]
[344620844,1733622643120,-4532.21,0.00019999,2]
[344620845,1733622643129,-4532.21,0.00019999,2]
[344620846,1733622643139,-4532.21,0.00019999,2]
[344620847,1733622643148,-4532.21,0.00019999,2]
[344620848,1733622643157,-4532.21,0.00019999,2]
[344620849,1733622643167,-4532.21,0.00019999,2]
[344620850,1733622643178,-4532.21,0.00019999,2]
[344620851,1733622643187,-4532.21,0.00019999,2]
[344620852,1733622643196,-4532.21,0.00019999,2]
[344620853,1733622643205,-500.0,0.00019999,2]
[344620854,1733622643215,-4532.21,0.00019999,2]
[344620855,1733622643224,-500.0,0.00019999,2]
[344620856,1733622643234,-4532.21,0.00019999,2]
[344620857,1733622643243,-500.0,0.00019999,2]
[344620858,1733622643252,-4532.21,0.00019999,2]
[344620859,1733622643261,-299.94204346,0.00019999,2]
[344620860,1733622643270,-4532.21,0.00019999,2]
[344620861,1733622643280,-4532.21,0.00019999,2]
[344620862,1733622643289,-4532.21,0.00019999,2]
[344620864,1733622643298,-4532.21,0.00019999,2]
[344620865,1733622643307,-4532.21,0.00019999,2]
[344620866,1733622643316,-4532.21,0.00019999,2]
[344620867,1733622643326,-4532.21,0.00019999,2]
[344620868,1733622643335,-4532.21,0.00019999,2]
[344620869,1733622643345,-4532.21,0.00019999,2]
[344620870,1733622643355,-4532.21,0.00019999,2]
[344620871,1733622643364,-4532.40468589,0.00019999,2]
[344620872,1733622643373,-544.99761049,0.00019999,2]
[344620873,1733622643382,-163.15891388,0.00019999,2]
[344620874,1733622643391,-7625.46,0.00019999,2]
[344620875,1733622643401,-7625.46,0.00019999,2]
[344620876,1733622643410,-7625.46,0.00019999,2]
[344620877,1733622643419,-7625.46,0.00019999,2]
[344620878,1733622643430,-7625.46,0.00019999,2]
[344620879,1733622643439,-7625.46,0.00019999,2]
[344620880,1733622643453,-7625.46,0.00019999,2]
[344620881,1733622643463,-7625.46,0.00019999,2]
[344620882,1733622643472,-7625.46,0.00019999,2]
[344620883,1733622643481,-7625.46,0.00019999,2]
[344620884,1733622643491,-7625.46,0.00019999,2]
[344620885,1733622643500,-7625.46,0.00019999,2]
[344620886,1733622643508,-7625.46,0.00019999,2]
[344620887,1733622643518,-7625.46,0.00019999,2]
[344620888,1733622643527,-7625.46,0.00019999,2]
[344620889,1733622643537,-7625.46,0.00019999,2]
[344620891,1733622643546,-7625.46,0.00019999,2]
[344620892,1733622643555,-7625.46,0.00019999,2]
[344620893,1733622643564,-7625.46,0.00019999,2]
[344620894,1733622643574,-7625.46,0.00019999,2]
[344620895,1733622643583,-7625.46,0.00019999,2]
[344620896,1733622643592,-7625.53129866,0.00019999,2]
[344620897,1733622643602,-650.0,0.00019999,2]
[344620898,1733622643611,-20000.0,0.0002,2]
[344620899,1733622643621,-1563816.66817574,0.0002,3]
[344620900,1733622643630,-58863.34829239,0.0002,3]
[344620901,1733622643640,-8799.69904723,0.0002,2]
[344620902,1733622643649,-20916402.03112573,0.0002,2]
[344620903,1733622643658,-22496.50409433,0.0002,2]
[344620904,1733622643667,-35753.86613189,0.0002,7]
[344620905,1733622643678,-26769.0,0.0002,3]
[344620906,1733622643687,-204.0,0.0002,2]
[344620907,1733622643699,-204.0,0.0002,2]
[344620908,1733622643708,-204.0,0.0002,2]
[344620909,1733622643717,-204.0,0.0002,2]
[344620910,1733622643726,-150.0,0.0002,2]
[344620911,1733622643735,-2000.0,0.0002,2]
[344620912,1733622643746,-500.0,0.0002,2]
[344620913,1733622643758,-500.0,0.0002,2]
[344620914,1733622643767,-2000.0,0.0002,2]
[344620915,1733622643777,-1185821.94748259,0.0002,2]
[344620916,1733622643838,-2286659.24736891,0.0002,2]
[344620917,1733622643857,-4847.08190694,0.0002,2]
[344620918,1733622643868,-553.12399616,0.0002,2]
[344620919,1733622643879,-399.7100002,0.0002,2]
[344620920,1733622643890,-1372.44125802,0.0002,2]
[344620921,1733622643980,-504.04591346,0.00019973,2]
[344620922,1733622643990,-538.45314015,0.00019998,2]
[344620923,1733622643999,-21717.50094639,0.0002,2]
[344620924,1733622644011,-6940.10729827,0.0002,2]
[344620925,1733622644022,-3002.4,0.0002,2]
[344620926,1733622644198,-937.74903159,0.0002,2]
[344620930,1733622645809,-1729.16665233,0.000198,2]
[344620931,1733622645819,-241.26546677,0.00019898,2]
[344620932,1733622645831,-750.96786764,0.0002,2]
[344620933,1733622645844,-3847.91468523,0.0002,2]
[344620934,1733622645857,-194805.59756202,0.0002,2]
[344620935,1733622645868,-1301.5446653,0.0002,2]
[344620936,1733622646014,-4833.79971318,0.0002,2]
[344620943,1733623262908,10000.0,0.0002,120]
[344620944,1733623306239,2500.0,0.00021,120]
[344620945,1733623423163,346.99668018,0.000211,120]
[344620946,1733623469804,220.0,0.0002,90]
[344620948,1733623832049,-324.5,0.00016842,2]
[344620949,1733623832059,-250.0,0.00018685,2]
[344620950,1733623832069,-192.1,0.00018706,2]
[344620951,1733623832079,-1000.0,0.0001873,2]
[344620952,1733623832088,-300.76,0.00018733,2]
[344620953,1733623832097,-2000.0,0.00018734,2]
[344620954,1733623832107,-200.0,0.00018745,2]
[344620955,1733623832116,-422.71,0.00018868,2]
[344620956,1733623832126,-1074.25,0.00018959,30]
[344620957,1733623832139,-220.416,0.00019,2]
[344620958,1733623832149,-324.5,0.00019106,2]
[344620959,1733623832158,-150.99,0.00019178,2]
[344620960,1733623832168,-2260.0,0.00019178,5]
[344620961,1733623832179,-1052.0,0.000194,2]
[344620962,1733623832188,-407.52,0.000195,2]
[344620963,1733623832197,-2416.9325486,0.000196,2]
[344620964,1733623832207,-175.8,0.00019662,2]
[344620965,1733623832216,-5000.0,0.000197,3]
[344620966,1733623832226,-5000.0,0.000198,4]
[344620967,1733623832235,-217.13892012,0.000198,2]
[344620968,1733623832245,-217.13892008,0.00019811,2]
[344620969,1733623832256,-217.13892008,0.00019822,2]
[344620970,1733623832266,-167.33,0.0001983,2]
[344620971,1733623832277,-152.0,0.0001983,2]
[344620972,1733623832286,-217.13892008,0.00019833,2]
[344620973,1733623832295,-500.0,0.00019839,2]
[344620974,1733623832305,-500.0,0.0001984,2]
[344620975,1733623832314,-500.0,0.0001984,2]
[344620976,1733623832324,-217.13892008,0.00019844,2]
[344620977,1733623832333,-217.13892008,0.00019856,2]
[344620978,1733623832342,-217.13892008,0.00019867,2]
[344620979,1733623832352,-500.29396504,0.00019873,2]
[344620980,1733623832361,-360.42053978,0.00019873,2]
[344620981,1733623832373,-140.96072748,0.00019873,2]
[344620982,1733623832383,-501.00572687,0.00019873,2]
[344620983,1733623832392,-260.99194014,0.00019873,2]
[344620984,1733623832401,-199.83556871,0.00019873,2]
[344620985,1733623832410,-159.70991762,0.00019873,2]
[344620986,1733623832420,-500.0,0.00019873,2]
[344620987,1733623832429,-502.6395362,0.00019873,2]
[344620988,1733623832438,-600.42050157,0.00019873,2]
[344620989,1733623832448,-2943.164,0.00019898,2]
[344620990,1733623832457,-174.539,0.00019898,2]
[344620991,1733623832466,-2566.1675,0.00019898,2]
[344620992,1733623832475,-500.0,0.00019899,2]
[344620993,1733623832484,-535.01198764,0.00019899,2]
[344620996,1733623832494,-528.97500849,0.00019899,2]
[344620998,1733623832503,-503.79362209,0.00019899,2]
[344621000,1733623832512,-433.40540977,0.00019899,2]
[344621002,1733623832527,-500.0,0.00019899,2]
[344621004,1733623832539,-403.65382992,0.00019899,2]
[344621007,1733623832554,-1048.28734482,0.00019899,2]
[344621009,1733623832566,-475.41882526,0.00019899,2]
[344621011,1733623832576,-1356.76,0.00019899,2]
[344621013,1733623832585,-615.09,0.00019899,2]
[344621015,1733623832594,-257.92163582,0.00019899,2]
[344621017,1733623832604,-962.05,0.00019899,2]
[344621019,1733623832613,-497.39268768,0.00019899,2]
[344621021,1733623832622,-4343.37,0.00019899,2]
[344621023,1733623832632,-500.0,0.00019899,2]
[344621025,1733623832641,-524.99761049,0.00019899,2]
[344621027,1733623832650,-500.0,0.00019899,2]
[344621029,1733623832659,-163.15891388,0.00019899,2]
[344621031,1733623832668,-148456.30707876,0.000199,2]
[344621136,1733623837951,-203.5709391,0.00019873,2]
[344621137,1733623837961,-161.04529283,0.00019873,2]
[344621138,1733623837971,-217.13892008,0.00019878,2]
[344621139,1733623837980,-217.13892008,0.00019889,2]
[344621140,1733623837990,-1500.11707691,0.000199,2]
[344621141,1733623838001,-544.38170658,0.000199,2]
[344621142,1733623838012,-230219.60693775,0.000199,2]
[344621143,1733623838021,-2500.0,0.000199,4]
[344621144,1733623838032,-440.8647,0.000199,2]
[344621145,1733623838042,-5000.0,0.000199,4]
[344621146,1733623838051,-10000.0,0.000199,2]
[344621147,1733623838060,-2500.0,0.000199,4]
[344621148,1733623838069,-547.0,0.00019973,2]
[344621149,1733623838079,-500.0,0.00019989,2]
[344621150,1733623838088,-2888.3857984,0.00019996,2]
[344621151,1733623838097,-9859.1126757,0.00019996,2]
[344621152,1733623838106,-1557.4977802,0.00019996,2]
[344621153,1733623838116,-1447.01355,0.00019996,2]
[344621154,1733623838125,-500.0,0.00019997,2]
[344621155,1733623838138,-999.0,0.00019998,3]
[344621156,1733623838147,-999.0,0.00019998,3]
[344621157,1733623838157,-999.0,0.00019998,3]
[344621159,1733623838166,-999.0,0.00019998,2]
[344621161,1733623838178,-999.0,0.00019998,2]
[344621162,1733623838189,-559.66442002,0.00019998,2]
[344621165,1733623838199,-500.0,0.00019998,2]
[344621166,1733623838211,-500.0,0.00019998,2]
[344621167,1733623838220,-500.0,0.00019998,2]
[344621168,1733623838230,-500.0,0.00019998,2]
[344621169,1733623838239,-500.0,0.00019998,2]
[344621170,1733623838248,-500.0,0.00019998,2]
[344621171,1733623838257,-1927.36,0.00019998,2]
[344621172,1733623838267,-1356.76,0.00019998,2]
[344621173,1733623838276,-962.05,0.00019998,2]
[344621174,1733623838285,-4343.37,0.00019998,2]
[344621175,1733623838295,-500.0,0.00019998,2]
[344621176,1733623838305,-500.0,0.00019999,2]
[344621181,1733623838516,-500.0,0.00019999,2]
[344621182,1733623838528,-500.0,0.00019999,2]
[344621183,1733623838541,-576.18000821,0.00019999,2]
[344621184,1733623838550,-503.70814381,0.00019999,2]
[344621185,1733623838559,-500.91376766,0.00019999,2]
[344621186,1733623838569,-619.56809418,0.00019999,2]
[344621187,1733623838578,-500.0,0.00019999,2]
[344621188,1733623838588,-500.0,0.00019999,2]
[344621189,1733623838597,-512.69582053,0.00019999,2]
[344621190,1733623838606,-333.64354469,0.00019999,2]
[344621191,1733623838615,-500.0,0.00019999,2]
[344621192,1733623838624,-500.0,0.00019999,2]
[344621193,1733623838633,-500.0,0.00019999,2]
[344621194,1733623838643,-500.0,0.00019999,2]
[344621195,1733623838651,-500.0,0.00019999,2]
[344621196,1733623838661,-500.0,0.00019999,2]
[344621197,1733623838670,-500.0,0.00019999,2]
[344621198,1733623838679,-500.0,0.00019999,2]
[344621199,1733623838688,-500.0,0.00019999,2]
[344621200,1733623838697,-500.0,0.00019999,2]
[344621201,1733623838706,-500.0,0.00019999,2]
[344621202,1733623838716,-500.0,0.00019999,2]
[344621203,1733623838725,-500.0,0.00019999,2]
[344621204,1733623838734,-500.0,0.00019999,2]
[344621205,1733623838744,-500.0,0.00019999,2]
[344621206,1733623838753,-500.0,0.00019999,2]
[344621207,1733623838762,-500.0,0.00019999,2]
[344621208,1733623838771,-500.0,0.00019999,2]
[344621209,1733623838781,-500.0,0.00019999,2]
[344621210,1733623838790,-500.0,0.00019999,2]
[344621211,1733623838799,-500.0,0.00019999,2]
[344621212,1733623838808,-500.0,0.00019999,2]
[344621213,1733623838817,-500.0,0.00019999,2]
[344621214,1733623838826,-500.0,0.00019999,2]
[344621215,1733623838837,-500.0,0.00019999,2]
[344621216,1733623838846,-500.0,0.00019999,2]
[344621217,1733623838855,-500.0,0.00019999,2]
[344621218,1733623838864,-500.0,0.00019999,2]
[344621219,1733623838874,-500.0,0.00019999,2]
[344621220,1733623838883,-500.0,0.00019999,2]
[344621221,1733623838893,-500.0,0.00019999,2]
[344621222,1733623838903,-500.0,0.00019999,2]
[344621223,1733623838912,-500.0,0.00019999,2]
[344621224,1733623838923,-500.0,0.00019999,2]
[344621225,1733623838935,-500.0,0.00019999,2]
[344621226,1733623838944,-500.0,0.00019999,2]
[344621227,1733623838953,-285.59055614,0.00019999,2]
[344621228,1733623838963,-500.0,0.00019999,2]
[344621229,1733623838973,-500.0,0.00019999,2]
[344621230,1733623838983,-500.0,0.00019999,2]
[344621231,1733623838995,-500.0,0.00019999,2]
[344621232,1733623839004,-610.06855254,0.00019999,2]
[344621233,1733623839013,-500.0,0.00019999,2]
[344621234,1733623839023,-500.0,0.00019999,2]
[344621235,1733623839034,-500.0,0.00019999,2]
[344621236,1733623839043,-500.0,0.00019999,2]
[344621237,1733623839053,-500.0,0.00019999,2]
[344621238,1733623839062,-500.0,0.00019999,2]
[344621239,1733623839071,-500.0,0.00019999,2]
[344621240,1733623839081,-500.0,0.00019999,2]
[344621241,1733623839091,-500.0,0.00019999,2]
[344621242,1733623839099,-500.0,0.00019999,2]
[344621243,1733623839109,-500.0,0.00019999,2]
[344621244,1733623839118,-500.0,0.00019999,2]
[344621245,1733623839128,-500.0,0.00019999,2]
[344621246,1733623839141,-500.0,0.00019999,2]
[344621247,1733623839151,-500.0,0.00019999,2]
[344621248,1733623839160,-500.0,0.00019999,2]
[344621249,1733623839170,-1075.02639277,0.00019999,5]
[344621250,1733623839181,-1075.02639277,0.00019999,5]
[344621251,1733623839191,-1075.02639277,0.00019999,5]
[344621252,1733623839200,-1075.02639277,0.00019999,5]
[344621253,1733623839210,-1075.02639277,0.00019999,5]
[344621254,1733623839221,-1075.02639277,0.00019999,5]
[344621255,1733623839231,-1075.02639277,0.00019999,5]
[344621256,1733623839240,-151.2423014,0.00019999,2]
[344621257,1733623839249,-500.0,0.00019999,2]
[344621258,1733623839259,-500.0,0.00019999,2]
[344621259,1733623839268,-500.0,0.00019999,2]
[344621260,1733623839278,-500.0,0.00019999,2]
[344621261,1733623839288,-500.0,0.00019999,2]
[344621262,1733623839297,-500.0,0.00019999,2]
[344621263,1733623839307,-500.0,0.00019999,2]
[344621264,1733623839316,-500.0,0.00019999,2]
[344621265,1733623839325,-500.0,0.00019999,2]
[344621266,1733623839335,-500.0,0.00019999,2]
[344621267,1733623839344,-500.0,0.00019999,2]
[344621268,1733623839353,-500.0,0.00019999,2]
[344621269,1733623839362,-500.0,0.00019999,2]
[344621270,1733623839372,-500.0,0.00019999,2]
[344621271,1733623839381,-500.0,0.00019999,2]
[344621272,1733623839391,-500.0,0.00019999,2]
[344621273,1733623839400,-500.0,0.00019999,2]
[344621274,1733623839410,-500.0,0.00019999,2]
[344621275,1733623839419,-303.02,0.00019999,2]
[344621276,1733623839429,-2007.678,0.00019999,2]
[344621277,1733623839439,-500.0,0.00019999,2]
[344621278,1733623839449,-500.0,0.00019999,2]
[344621279,1733623839458,-500.0,0.00019999,2]
[344621280,1733623839467,-500.0,0.00019999,2]
[344621281,1733623839476,-500.0,0.00019999,2]
[344621282,1733623839486,-500.0,0.00019999,2]
[344621283,1733623839496,-513.0071499,0.00019999,2]
[344621284,1733623839505,-500.0,0.00019999,2]
[344621285,1733623839515,-500.0,0.00019999,2]
[344621286,1733623839524,-500.0,0.00019999,2]
[344621287,1733623839535,-500.0,0.00019999,2]
[344621288,1733623839545,-500.0,0.00019999,2]
[344621289,1733623839554,-500.0,0.00019999,2]
[344621290,1733623839563,-500.0,0.00019999,2]
[344621291,1733623839572,-500.0,0.00019999,2]
[344621292,1733623839582,-250.0,0.00019999,2]
[344621293,1733623839592,-50065.58500132,0.00019999,2]
[344621294,1733623839601,-424.50201816,0.00019999,2]
[344621295,1733623839611,-1927.36,0.00019999,2]
[344621296,1733623839620,-1927.36,0.00019999,2]
[344621297,1733623839630,-1927.36,0.00019999,2]
[344621298,1733623839640,-1927.36,0.00019999,2]
[344621299,1733623839649,-1927.36,0.00019999,2]
[344621300,1733623839659,-1927.36,0.00019999,2]
[344621301,1733623839668,-1927.36,0.00019999,2]
[344621302,1733623839678,-1927.36,0.00019999,2]
[344621303,1733623839687,-1927.36,0.00019999,2]
[344621304,1733623839696,-1927.36,0.00019999,2]
[344621305,1733623839706,-1927.36,0.00019999,2]
[344621306,1733623839716,-1927.36,0.00019999,2]
[344621307,1733623839726,-1927.36,0.00019999,2]
[344621308,1733623839735,-1927.36,0.00019999,2]
[344621309,1733623839745,-1927.36,0.00019999,2]
[344621310,1733623839755,-1927.36,0.00019999,2]
[344621311,1733623839765,-1927.36,0.00019999,2]
[344621312,1733623839775,-1927.36,0.00019999,2]
[344621313,1733623839785,-1927.36,0.00019999,2]
[344621314,1733623839795,-1927.36,0.00019999,2]
[344621315,1733623839805,-1927.36,0.00019999,2]
[344621316,1733623839815,-1927.57467142,0.00019999,2]
[344621317,1733623839824,-1356.76,0.00019999,2]
[344621318,1733623839833,-1356.76,0.00019999,2]
[344621319,1733623839842,-1356.76,0.00019999,2]
[344621323,1733623839852,-1356.76,0.00019999,2]
[344621324,1733623839861,-1356.76,0.00019999,2]
[344621325,1733623839871,-1356.76,0.00019999,2]
[344621326,1733623839880,-1356.76,0.00019999,2]
[344621327,1733623839890,-1356.76,0.00019999,2]
[344621328,1733623839899,-1356.76,0.00019999,2]
[344621329,1733623839909,-1356.76,0.00019999,2]
[344621330,1733623839919,-1356.76,0.00019999,2]
[344621331,1733623839928,-1356.76,0.00019999,2]
[344621332,1733623839938,-1356.76,0.00019999,2]
[344621333,1733623839947,-1356.76,0.00019999,2]
[344621334,1733623839956,-1356.76,0.00019999,2]
[344621335,1733623839965,-1356.76,0.00019999,2]
[344621336,1733623839975,-1356.76,0.00019999,2]
[344621337,1733623839984,-1356.76,0.00019999,2]
[344621338,1733623839994,-1356.76,0.00019999,2]
[344621339,1733623840003,-1356.76,0.00019999,2]
[344621340,1733623840012,-1356.76,0.00019999,2]
[344621341,1733623840022,-1356.98254997,0.00019999,2]
[344621342,1733623840032,-962.05,0.00019999,2]
[344621343,1733623840042,-962.05,0.00019999,2]
[344621344,1733623840051,-962.05,0.00019999,2]
[344621345,1733623840061,-962.05,0.00019999,2]
[344621346,1733623840071,-962.05,0.00019999,2]
[344621347,1733623840081,-962.05,0.00019999,2]
[344621348,1733623840091,-962.05,0.00019999,2]
[344621349,1733623840100,-962.05,0.00019999,2]
[344621350,1733623840110,-962.05,0.00019999,2]
[344621351,1733623840119,-962.05,0.00019999,2]
[344621352,1733623840128,-962.05,0.00019999,2]
[344621353,1733623840141,-962.05,0.00019999,2]
[344621354,1733623840151,-962.05,0.00019999,2]
[344621355,1733623840159,-962.05,0.00019999,2]